[Event "Chinese League Division-A 2024"]
[Site "Fuling Chongqing"]
[Date "2024.06.27"]
[Round "2.21"]
[White "Wang, Yue"]
[Black "Huang, Renjie"]
[Result "1/2-1/2"]
[ECO "B45"]
[WhiteElo "2652"]
[BlackElo "2480"]
[Annotator "TA"]
[PlyCount "139"]
[EventDate "2024.06.28"]
[EventType "team-tourn"]
[EventCountry "CHN"]
[SourceTitle "playchess.com"]
[Source "ChessBase"]
[SourceQuality "1"]
[TimeControl "40/5400+30:1800+30"]

{[%evp 58,139,-36,-48,-26,-135,-133,-145,-130,-128,-151,-138,-138,-138,-93,-96,-13,-37,-26,-106,-108,-192,-179,-235,-235,-211,-117,-173,-171,-200,-46,-46,-46,-47,-16,-16,-16,-16,-16,-16,-16,-16,-16,-16,-16,-16,-16,-27,-16,-16,-16,-16,-16,-16,-16,-16,-16,-16,-16,-20,-20,-20,-16,-16,-16,-20,-20,-20,-20,-24,-24,-28,-24,-4586,-4586,-4586,-4586,-4586,-4586,-4586,-4586,-4586,-4586,-4586]} 1. e4 {[%emt 0:00:40]} c5 {[%emt 0:00:01]} 2. Nf3 {[%emt 0:00:07]} e6 {[%emt 0:00:03]} 3. d4 {[%emt 0:00:20]} cxd4 {[%emt 0:00:01]} 4. Nxd4 {[%emt 0:00:07]} Nf6 {[%emt 0:00:03]} 5. Nc3 {[%emt 0:00:08]} Nc6 {[%emt 0:00:03]} 6. Nxc6 {[%emt 0:00:55]} bxc6 {[%emt 0:00:04]} 7. e5 {[%emt 0:00:05]} Nd5 {[%emt 0:00:03]} 8. Ne4 {[%emt 0:00:05]} Bb7 {[%emt 0:00:51]} 9. Bd3 {[%emt 0:01:13] B45: Sicilian Four Knights.} Qc7 {[%emt 0:01:42]} 10. f4 {[%emt 0:00:14]} c5 {[%emt 0:00:04]} 11. c4 {[%emt 0:00:31]} Nb4 {[%emt 0:01:12]} 12. Bb1 {[%emt 0:00:08]} Nc6 {[%emt 0:01:37]} 13. O-O {[%emt 0:00:58]} a5 {[%emt 0:01:19]} 14. Nc3 $146 {[%emt 0:03:01]} ({Predecessor:} 14. Be3 Nd4 15. Nc3 Be7 16. Be4 Bxe4 17. Nxe4 Nf5 18. Bf2 Rb8 19. g4 Qc6 20. Qf3 {½-½ Moussard,J (2680)-Lupulescu,C (2580) EU-ch 23rd Vrnjacka Banja 2023 (8)}) 14... Nd4 {[%emt 0:12:56]} 15. a4 {[%emt 0:00:06]} Be7 {[%emt 0:03:42]} 16. Ra3 {[%emt 0:00:14]} g6 {[%emt 0:06:03]} 17. Nb5 {[%emt 0:01:22]} Qc6 {[%emt 0:00:06]} 18. Rg3 {[%emt 0:00:03]} h5 {[%emt 0:09:51]} 19. Rf2 {[%emt 0:01:45]} h4 {[%emt 0:07:30]} 20. Rh3 {[%emt 0:00:42]} Rd8 {[%emt 0:02:04]} 21. Bd2 {[%emt 0:20:33]} d5 {[%emt 0:07:29]} 22. Bxa5 {[%emt 0:08:20]} Rd7 {[%emt 0:00:35]} 23. Nd6+ {[%emt 0:33:24]} Bxd6 {[%emt 0:04:27]} 24. exd6 {[%emt 0:00:08]} Qxd6 {[%emt 0:06:41]} 25. cxd5 {[%emt 0:00:47]} Qxd5 {[%emt 0:03:05]} 26. Bc3 {[%emt 0:00:35]} Rh5 {[%emt 0:01:40]} 27. Bd3 {[%emt 0:05:48]} Qd6 {[%emt 0:03:42]} 28. Qg4 {[%emt 0:03:23]} Ba6 {[%emt 0:04:45]} 29. Rd2 {[%emt 0:12:49]} Bxd3 {[%emt 0:02:20]} 30. Rhxd3 {[%emt 0:00:01]} ({Reject} 30. Rdxd3 Qxf4 31. Qxf4 Ne2+ 32. Kf1 Nxf4 33. Rxd7 Kxd7 $17) 30... Rd5 $1 {[%emt 0:02:41]} 31. Bxd4 {[%emt 0:03:41]} (31. Qxh4 $11 Ne2+ 32. Rxe2 Rxd3 33. h3) 31... c4 $1 $17 {[%emt 0:00:09]} 32. Qxh4 {[%emt 0:02:18]} ({Avoid the trap} 32. Be5 $2 Qc5+ $19) 32... cxd3 {[%emt 0:00:44]} 33. Qh8+ {[%emt 0:00:21]} Qf8 {[%emt 0:00:00]} 34. Qxf8+ {[%emt 0:00:05]} Kxf8 {[%emt 0:00:00]} 35. Bc3 {[%emt 0:01:04]} g5 {[%emt 0:00:00]} 36. fxg5 {[%emt 0:00:12]} Rf5 {[%emt 0:00:00]} (36... Rxg5 $17 37. a5 Rgd5) 37. a5 {[%emt 0:02:02]} e5 {[%emt 0:00:08]} 38. g4 {[%emt 0:00:03]} (38. Rd1 $1 $11 {keeps the balance.}) 38... Rxg5 $17 {[%emt 0:00:12]} 39. h3 {[%emt 0:00:39]} (39. Kf2 $17) 39... f5 $19 {[%emt 0:00:26]} 40. Kf2 {[%emt 0:00:00]} fxg4 {[%emt 0:00:00]} 41. hxg4 {[%emt 0:00:43]} Rxg4 {[%emt 0:03:42]} ({Black should play} 41... e4 $1 $19 42. Rd1 Rxg4) 42. Kf3 {[%emt 0:02:14] [#]} (42. Bxe5 $17 Rg5 43. Bc3) 42... Rh4 $1 $19 {[%emt 0:06:17]} 43. Bxe5 {[%emt 0:03:30] [#]} Rf7+ $2 {[%emt 0:03:09]} (43... Rh5 $1 $19 {[%cal Rh5e5]} 44. Bc3 Rh6) 44. Kg3 {[%emt 0:04:20]} Rh5 {[%emt 0:00:58]} 45. Bd6+ {[%emt 0:00:39]} Kg8 {[%emt 0:00:39]} 46. Rxd3 {[%emt 0:02:28]} Rg5+ {[%emt 0:00:55]} 47. Kh2 {[%emt 0:00:40]} Rf2+ {[%emt 0:00:41]} 48. Kh3 {[%emt 0:00:36]} Rxa5 {[%emt 0:00:04]} 49. b4 {[%emt 0:01:14]} Ra1 {[%emt 0:00:56]} 50. Kg4 {[%emt 0:01:32]} Raf1 {[%emt 0:00:24]} 51. Bg3 {[%emt 0:00:34]} Rf7 {[%emt 0:00:17]} 52. Rd5 {[%emt 0:00:50]} Rb1 {[%emt 0:00:26]} 53. Rg5+ {[%emt 0:00:48]} Kf8 {[%emt 0:00:09]} 54. Rf5 {[%emt 0:01:30]} Rxb4+ {[%emt 0:00:30]} 55. Kg5 {[%emt 0:00:08]} Rxf5+ {[%emt 0:00:05]} 56. Kxf5 {[%emt 0:00:05]} Kf7 {[%emt 0:00:03]} 57. Bf4 {[%emt 0:00:14]} Rb5+ {[%emt 0:00:06]} 58. Kg4 {[%emt 0:00:09]} Kf6 {[%emt 0:00:08]} 59. Bd2 {[%emt 0:00:18]} Rc5 {[%emt 0:00:06]} 60. Be3 {[%emt 0:00:23]} Rc4+ {[%emt 0:00:04]} 61. Bf4 {[%emt 0:00:05]} Rb4 {[%emt 0:00:06]} 62. Kf3 {[%emt 0:00:05]} Kf5 {[%emt 0:00:03]} 63. Bh2 {[%emt 0:00:06]} Rb3+ {[%emt 0:00:05]} 64. Kg2 {[%emt 0:00:11]} Kg4 {[%emt 0:00:05]} 65. Kh1 $2 {[%emt 0:00:54][%mdl 8192]} (65. Kf2 $11) 65... Kf3 {[%emt 0:00:27]} 66. Bd6 {[%emt 0:01:39]} Rb1+ {[%emt 0:00:27]} 67. Kh2 {[%emt 0:00:05]} Rb2+ {[%emt 0:00:01]} 68. Kg1 {[%emt 0:01:29]} Rg2+ {[%emt 0:00:26]} 69. Kh1 {[%emt 0:00:03]} Rg7 {[%emt 0:00:04]} 70. Kh2 {[%emt 0:00:39]} 1/2-1/2

[Event "Chinese League Division-A 2024"]
[Site "Fuling Chongqing"]
[Date "2024.06.27"]
[Round "2.22"]
[White "Liu, Qingnan"]
[Black "Dai, Changren"]
[Result "1/2-1/2"]
[ECO "C54"]
[WhiteElo "2540"]
[BlackElo "2502"]
[Annotator "TA"]
[PlyCount "66"]
[EventDate "2024.06.28"]
[EventType "team-tourn"]
[EventCountry "CHN"]
[SourceTitle "playchess.com"]
[Source "ChessBase"]
[SourceQuality "1"]
[TimeControl "40/5400+30:1800+30"]

{[%evp 12,66,16,12,15,7,20,17,22,20,21,18,9,4,11,25,6,8,8,16,26,-16,0,-34,-31,-26,-20,-35,-23,-28,-26,-27,-27,-37,0,0,0,0,0,0,9,20,25,25,17,12,9,0,0,0,0,0,0,0,0,0,0]} 1. e4 {[%emt 0:00:03]} e5 {[%emt 0:00:05]} 2. Nf3 {[%emt 0:00:04]} Nc6 {[%emt 0:00:04]} 3. Bc4 {[%emt 0:00:02]} Bc5 {[%emt 0:00:06]} 4. c3 {[%emt 0:00:05]} Nf6 {[%emt 0:00:04]} 5. d3 {[%emt 0:00:08]} d6 {[%emt 0:00:33]} 6. O-O {[%emt 0:00:07]} O-O {[%emt 0:00:46]} 7. h3 {[%emt 0:00:06]} a5 {[%emt 0:00:23]} 8. Re1 {[%emt 0:00:11]} Be6 {[%emt 0:02:17]} 9. Bb5 {[%emt 0:00:30]} Ba7 {[%emt 0:00:02]} 10. Nbd2 {[%emt 0:00:09]} Ne7 {[%emt 0:00:55]} 11. d4 {[%emt 0:00:55]} Ng6 {[%emt 0:00:29]} 12. Ba4 {[%emt 0:00:43]} Nh5 {[%emt 0:04:31]} 13. Nf1 {[%emt 0:00:09]} Nhf4 {[%emt 0:00:25]} 14. Ng3 {[%emt 0:00:09]} c6 {[%emt 0:01:42]} 15. Bc2 {[%emt 0:07:53]} f6 {[%emt 0:02:48]} 16. Bb3 {[%emt 0:05:29]} d5 $1 {[%emt 0:11:46]} 17. Bxf4 {[%emt 0:04:30]} (17. Be3 {simplifies} Kh8 18. Bc2 Bb8 19. Bxf4 Nxf4 20. Ne2) 17... Nxf4 {[%emt 0:03:18]} 18. exd5 {[%emt 0:01:56]} cxd5 {[%emt 0:02:26]} 19. dxe5 {[%emt 0:00:36] Black must now prevent Ne2.} Kh8 {[%emt 0:17:06][%cal Oa5a4]} 20. Ne2 {[%emt 0:51:17] [#]} Nxh3+ {[%emt 0:08:25]} 21. gxh3 {[%emt 0:00:04]} fxe5 {[%emt 0:00:06]} 22. Ng3 $1 {[%emt 0:00:03]} Qf6 {[%emt 0:12:24]} 23. Rxe5 {[%emt 0:00:04] Threatens to win with Kg2.} (23. Nxe5 $2 Bxf2+ (23... Qxf2+ $2 24. Kh1 $19) 24. Kh1 (24. Kg2 $2 Qh4 $19) 24... Bxg3 $19) 23... Bxh3 {[%emt 0:08:16] ...Qf4 is the strong threat.} 24. Bxd5 {[%emt 0:00:38][%cal Od1e1] [#] Hoping for Qe1!} Bg4 {[%emt 0:08:10][%cal Oa8d8] ...Rad8! would now be deadly. This pair of bishops is nice.} 25. Qe2 {[%emt 0:00:13][%cal Oa1d1]} Bxf3 {[%emt 0:01:14]} 26. Bxf3 {[%emt 0:00:09]} Qxf3 {[%emt 0:00:05]} 27. Qxf3 {[%emt 0:00:05]} Rxf3 {[%emt 0:00:06]} 28. Ne4 {[%emt 0:01:40][%cal Oa1e1] The position is equal.} Raf8 $132 {[%emt 0:00:46][%cal Ra7f2][%mdl 2048] Black has counterplay} 29. Kg2 {[%emt 0:00:00]} R3f4 {[%emt 0:00:43]} (29... Bxf2 30. Rf1 (30. Rxa5 Bh4 $11) 30... b6 31. b3 $18 (31. Nxf2 R3f6 $18) (31. Rxf2 Rxf2+ 32. Nxf2 h6 $18)) 30. Re1 {[%emt 0:04:06]} Bxf2 {[%emt 0:05:54]} 31. Rf1 {[%emt 0:00:07][%cal Rf1f2]} Rg4+ {[%emt 0:05:10]} 32. Kh3 {[%emt 0:00:11]} Rh4+ {[%emt 0:00:04]} ({Don't blunder} 32... Rgf4 $2 33. Rxf2 Rxf2 34. Nxf2 $18 (34. Rxa5 $2 {is the wrong capture.} Rxb2 35. Ra4 g6 $19)) 33. Kg2 {[%emt 0:00:04]} Rg4+ {[%emt 0:00:03] An interesting draw.   Weighted Error Value: White=0.04 (flawless) /Black=0.04 (flawless) .  Inaccurate:     	White=2     	Black=1      OK:         	White=8     	Black=13     Best:        	White=2     	Black=2      Strong:       	White=1     	Black=1} 1/2-1/2

[Event "Chinese League Division-A 2024"]
[Site "Fuling Chongqing"]
[Date "2024.06.27"]
[Round "2.23"]
[White "Chu, Wei Chao"]
[Black "Chen, Peng"]
[Result "1/2-1/2"]
[ECO "D22"]
[WhiteElo "2412"]
[BlackElo "2441"]
[Annotator "TA"]
[PlyCount "74"]
[EventDate "2024.06.28"]
[EventType "team-tourn"]
[EventCountry "CHN"]
[SourceTitle "playchess.com"]
[Source "ChessBase"]
[SourceQuality "1"]
[TimeControl "40/5400+30:1800+30"]

{[%evp 10,74,16,22,23,21,27,42,42,25,37,25,21,7,14,20,28,31,19,17,22,11,11,11,6,10,9,15,9,12,0,7,41,19,30,25,31,22,58,0,35,30,41,52,47,16,12,10,13,9,22,16,12,11,12,0,0,0,0,0,0,0,0,0,0,0,0]} 1. d4 {[%emt 0:00:04]} d5 {[%emt 0:00:33][%cal Bd7d5,Bd5c4][%mdl 32]} 2. c4 {[%emt 0:01:34]} dxc4 {[%emt 0:00:06]} 3. Nf3 {[%emt 0:00:07]} a6 {[%emt 0:00:48]} 4. e3 {[%emt 0:05:04]} b5 {[%emt 0:00:54]} 5. a4 {[%emt 0:00:09]} Bb7 {[%emt 0:01:05]} 6. b3 {[%emt 0:00:21]} e6 {[%emt 0:01:40]} 7. bxc4 {[%emt 0:00:56]} bxc4 {[%emt 0:00:05]} 8. Bxc4 {[%emt 0:00:10]} Nf6 {[%emt 0:00:05] White is slightly better.} 9. O-O {[%emt 0:00:52]} c5 {[%emt 0:01:32]} 10. Ba3 {[%emt 0:07:16]} Nbd7 {[%emt 0:01:43][%cal Bb8d7,Bd7e5,Be5c4][%mdl 32]} 11. Nbd2 {[%emt 0:01:41][%cal Bb1d2,Bd2b3,Bb3a5,Ba5c6][%mdl 32]} Be7 {[%emt 0:01:55]} 12. Rb1 {[%emt 0:02:33]} Rb8 {[%emt 0:03:29]} 13. Nb3 {[%emt 0:07:05]} cxd4 {[%emt 0:03:08]} 14. Bxe7 {[%emt 0:00:08]} Qxe7 {[%emt 0:00:02]} 15. Nfxd4 {[%emt 0:04:11]} Ne5 {[%emt 0:03:06]} 16. Na5 {[%emt 0:03:03]} Nxc4 {[%emt 0:07:11]} 17. Nac6 {[%emt 0:18:30]} Qc7 {[%emt 0:00:23]} 18. Nxb8 {[%emt 0:03:03][%cal Od1e2] Black must now prevent Qe2!} O-O $1 {[%emt 0:00:05] [#]} (18... Qxb8 $2 {too greedy.} 19. Nc6 Qa8 (19... Bxc6 $2 20. Rxb8+ Ke7 21. Rxh8 $18) 20. Rxb7 $18) 19. Rxb7 {[%emt 0:07:02]} Qxb7 {[%emt 0:00:08]} 20. Nbc6 {[%emt 0:00:05] Qd3 would now be deadly.} e5 {[%emt 0:05:04]} 21. Nf5 {[%emt 0:00:27][%cal Od1c2] Hoping for Qc2!} Kh8 $1 {[%emt 0:00:05]} 22. Nfe7 {[%emt 0:00:13] Qd3 is the strong threat.} Qb2 {[%emt 0:07:21]} 23. Qc1 {[%emt 0:02:37]} Qb3 {[%emt 0:00:33]} 24. Qd1 {[%emt 0:00:19]} Qb2 {[%emt 0:05:25]} 25. Qa1 {[%emt 0:03:23]} g6 {[%emt 0:00:55]} 26. Qxb2 {[%emt 0:02:57]} Nxb2 {[%emt 0:00:03]} 27. a5 {[%emt 0:00:10]} Nd3 {[%emt 0:01:07] The position is equal.} 28. Rb1 {[%emt 0:04:05]} Kg7 {[%emt 0:00:36]} 29. h3 {[%emt 0:00:41]} h5 {[%emt 0:00:03]} 30. Rb6 {[%emt 0:01:24]} Ra8 {[%emt 0:00:25]} 31. Nb8 {[%emt 0:02:21][%cal Oe7c6]} Nc5 {[%emt 0:00:13]} 32. Nec6 {[%emt 0:00:26]} Nd5 {[%emt 0:00:42]} 33. Rb1 {[%emt 0:02:47]} e4 {[%emt 0:01:30]} 34. Rc1 {[%emt 0:02:18]} Nb7 {[%emt 0:01:23]} 35. Rb1 {[%emt 0:00:08]} Nc5 {[%emt 0:00:13]} 36. Rc1 {[%emt 0:00:11]} Nb3 {[%emt 0:00:49]} 37. Rb1 {[%emt 0:00:20]} Nc5 {[%emt 0:00:06] Weighted Error Value: White=0.05 (flawless) /Black=0.03 (flawless) .  Inaccurate:     	White=1     	Black=1      OK:         	White=19    	Black=16     Best:        	---       	Black=1      Strong:       	---       	Black=2      Brilliant:      	White=1     	---} 1/2-1/2

[Event "Chinese League Division-A 2024"]
[Site "Fuling Chongqing"]
[Date "2024.06.27"]
[Round "2.24"]
[White "Zhang, Xiao"]
[Black "Xiao, Yiyi"]
[Result "1-0"]
[ECO "D85"]
[WhiteElo "2193"]
[BlackElo "2338"]
[Annotator "RC"]
[PlyCount "73"]
[EventDate "2024.06.28"]
[EventType "team-tourn"]
[EventCountry "CHN"]
[SourceTitle "playchess.com"]
[Source "ChessBase"]
[SourceQuality "1"]
[TimeControl "40/5400+30:1800+30"]

1. d4 {[%emt 0:00:03]} Nf6 {[%emt 0:00:19]} 2. c4 {[%emt 0:00:06]} g6 {[%emt 0:00:28]} 3. Nc3 {[%emt 0:01:14]} d5 {[%emt 0:00:20]} 4. cxd5 {[%emt 0:00:45]} Nxd5 {[%emt 0:00:12]} 5. e4 {[%emt 0:00:06]} Nxc3 {[%emt 0:00:05]} 6. bxc3 {[%emt 0:00:04]} Bg7 {[%emt 0:00:08]} 7. Be3 {[%emt 0:01:19]} O-O {[%emt 0:02:49]} 8. Nf3 {[%emt 0:02:54]} c5 {[%emt 0:02:40]} 9. Rc1 {[%emt 0:01:54]} Qa5 {[%emt 0:02:18]} 10. Qd2 {[%emt 0:00:18]} cxd4 {[%emt 0:00:58]} 11. cxd4 {[%emt 0:00:06]} Qxd2+ {[%emt 0:00:30]} 12. Nxd2 {[%emt 0:03:28]} e6 {[%emt 0:06:52]} 13. Bb5 {[%emt 0:08:57]} a6 {[%emt 0:05:01]} 14. Ba4 {[%emt 0:03:35]} Bd7 {[%emt 0:10:12]} 15. Bxd7 {[%emt 0:02:59]} Nxd7 {[%emt 0:00:06]} 16. Ke2 {[%emt 0:04:03]} Rfc8 {[%emt 0:04:31]} 17. Nb3 {[%emt 0:02:56]} Bf8 {[%emt 0:08:34]} 18. Rxc8 {[%emt 0:02:20]} Rxc8 {[%emt 0:00:57]} 19. Rc1 {[%emt 0:00:06]} Rxc1 {[%emt 0:00:14]} 20. Bxc1 {[%emt 0:00:30]} f5 {[%emt 0:02:18]} 21. f3 {[%emt 0:03:17]} b5 {[%emt 0:00:51]} 22. Kd3 {[%emt 0:00:27]} Kf7 {[%emt 0:02:52]} 23. Bd2 {[%emt 0:03:53]} Nb6 {[%emt 0:04:37]} 24. Na5 {[%emt 0:04:37]} Ke8 {[%emt 0:04:55]} 25. Be3 {[%emt 0:01:51]} Kd7 {[%emt 0:03:38]} 26. d5 {[%emt 0:02:49]} fxe4+ {[%emt 0:01:40]} 27. fxe4 {[%emt 0:00:05]} Na4 {[%emt 0:02:59]} 28. dxe6+ {[%emt 0:01:39]} Kxe6 {[%emt 0:00:05]} 29. Nb3 {[%emt 0:00:49]} Nb2+ {[%emt 0:01:24]} 30. Kd4 {[%emt 0:00:52]} Bd6 {[%emt 0:12:59]} 31. Nc5+ {[%emt 0:04:27]} Bxc5+ {[%emt 0:04:22]} 32. Kxc5 {[%emt 0:00:09]} Nd3+ {[%emt 0:00:37]} 33. Kb6 {[%emt 0:00:44]} Ke5 {[%emt 0:06:43]} 34. Kxa6 {[%emt 0:02:19]} Nb4+ {[%emt 0:01:52]} 35. Kxb5 {[%emt 0:00:08]} Nxa2 {[%emt 0:00:03]} 36. Kc4 {[%emt 0:00:15]} Kxe4 {[%emt 0:00:03]} 37. Bh6 {[%emt 0:03:21]} 1-0

[Event "Chinese League Division-A 2024"]
[Site "Fuling Chongqing"]
[Date "2024.06.27"]
[Round "2.25"]
[White "Zhou, Shumeng"]
[Black "Hu, Yu A."]
[Result "1/2-1/2"]
[ECO "B67"]
[WhiteElo "2173"]
[BlackElo "2127"]
[Annotator "RC"]
[PlyCount "66"]
[EventDate "2024.06.28"]
[EventType "team-tourn"]
[EventCountry "CHN"]
[SourceTitle "playchess.com"]
[Source "ChessBase"]
[SourceQuality "1"]
[TimeControl "40/5400+30:1800+30"]

1. e4 {[%emt 0:00:04]} c5 {[%emt 0:00:47]} 2. Nf3 {[%emt 0:00:05]} d6 {[%emt 0:00:54]} 3. d4 {[%emt 0:00:05]} cxd4 {[%emt 0:00:06]} 4. Nxd4 {[%emt 0:00:04]} Nf6 {[%emt 0:00:08]} 5. Nc3 {[%emt 0:00:04]} Nc6 {[%emt 0:00:13]} 6. Bg5 {[%emt 0:00:13]} e6 {[%emt 0:00:18]} 7. Qd2 {[%emt 0:00:26]} a6 {[%emt 0:00:22]} 8. O-O-O {[%emt 0:00:53]} Bd7 {[%emt 0:00:10]} 9. f4 {[%emt 0:01:59]} h6 {[%emt 0:01:42]} 10. Bh4 {[%emt 0:01:07]} Be7 {[%emt 0:01:16]} 11. Nf3 {[%emt 0:03:26]} Qc7 {[%emt 0:15:42]} 12. Bxf6 {[%emt 0:09:49]} Bxf6 {[%emt 0:09:56]} 13. Qxd6 {[%emt 0:02:58]} Qxd6 {[%emt 0:00:06]} 14. Rxd6 {[%emt 0:00:03]} g5 {[%emt 0:00:08]} 15. g3 {[%emt 0:10:08]} g4 {[%emt 0:27:33]} 16. Ne1 {[%emt 0:07:35]} Bd4 {[%emt 0:02:42]} 17. Ne2 {[%emt 0:04:25]} Be3+ {[%emt 0:00:26]} 18. Kb1 {[%emt 0:00:08]} Ke7 {[%emt 0:01:17]} 19. Rd1 {[%emt 0:01:45]} Rad8 {[%emt 0:05:33]} 20. Bg2 {[%emt 0:05:50]} Na5 {[%emt 0:06:38]} 21. Nd3 {[%emt 0:03:45]} Nc4 {[%emt 0:02:33]} 22. b3 {[%emt 0:06:48]} Nd2+ {[%emt 0:00:16]} 23. Kb2 {[%emt 0:00:06]} Nf3 {[%emt 0:12:50]} 24. h3 {[%emt 0:22:45]} h5 {[%emt 0:00:09]} 25. Rhf1 {[%emt 0:00:45]} Nh2 {[%emt 0:05:53]} 26. Rfe1 {[%emt 0:01:37]} gxh3 {[%emt 0:00:27]} 27. Bxh3 {[%emt 0:00:08]} Nf3 {[%emt 0:00:03]} 28. Rh1 {[%emt 0:01:27]} Bc6 {[%emt 0:00:26]} 29. Bg2 {[%emt 0:03:58]} Bxe4 {[%emt 0:00:25]} 30. Ne5 {[%emt 0:01:10]} Nd2 {[%emt 0:04:41]} 31. Bxe4 {[%emt 0:00:27]} Nxe4 {[%emt 0:00:02]} 32. Rxd8 {[%emt 0:04:14]} Rxd8 {[%emt 0:00:04]} 33. Nd3 {[%emt 0:00:04]} Rg8 {[%emt 0:01:19]} 1/2-1/2

[Event "Chinese League Division-A 2024"]
[Site "Fuling Chongqing"]
[Date "2024.06.27"]
[Round "2.26"]
[White "Wan, Yunguo"]
[Black "Xu, Yi"]
[Result "1/2-1/2"]
[ECO "C24"]
[WhiteElo "2498"]
[BlackElo "2496"]
[Annotator "TA"]
[PlyCount "43"]
[EventDate "2024.06.28"]
[EventType "team-tourn"]
[EventCountry "CHN"]
[SourceTitle "playchess.com"]
[Source "ChessBase"]
[SourceQuality "1"]
[TimeControl "40/5400+30:1800+30"]

{[%evp 9,43,8,32,30,16,9,7,4,16,0,13,11,6,0,13,0,11,0,0,0,0,0,0,0,0,0,0,0,0,-62,-7,-16,0,-62,0,-1]} 1. e4 {[%emt 0:00:07]} e5 {[%emt 0:00:04]} 2. Bc4 {[%emt 0:00:32]} Nf6 {[%emt 0:00:09]} 3. d3 {[%emt 0:00:14]} c6 {[%emt 0:00:05]} 4. Nf3 {[%emt 0:00:51]} d5 {[%emt 0:00:13]} 5. Bb3 {[%emt 0:01:04]} a5 {[%emt 0:00:15] [#] aiming for ...a4.} 6. a4 {[%emt 0:00:48]} Bb4+ {[%emt 0:00:09]} 7. c3 {[%emt 0:01:21]} Bd6 {[%emt 0:00:06]} 8. exd5 {[%emt 0:00:48]} cxd5 {[%emt 0:00:05]} 9. Bg5 {[%emt 0:02:38]} Be6 {[%emt 0:00:04]} 10. Na3 {[%emt 0:01:01]} Nbd7 {[%emt 0:00:05]} 11. Nb5 {[%emt 0:02:02]} Bb8 {[%emt 0:00:05]} 12. O-O {[%emt 0:02:39]} O-O {[%emt 0:00:05]} 13. h3 {[%emt 0:03:55]} h6 {[%emt 0:11:37]} 14. Bh4 {[%emt 0:01:20]} Ra6 {[%emt 0:01:27]} 15. Re1 {[%emt 0:03:24]} Re8 {[%emt 0:00:54]} 16. Qd2 {[%emt 0:03:33]} Nc5 {[%emt 0:15:05]} 17. Bc2 {[%emt 0:04:41]} Ncd7 {[%emt 0:00:24]} 18. Rad1 {[%emt 0:15:04]} Bf5 {[%emt 0:01:29]} 19. Bb3 {[%emt 0:13:52]} (19. Bg3 $11) 19... Nc5 {[%emt 0:01:08]} (19... Qc8 $1 $15 20. Bg3 Bg6) 20. Bc2 $11 {[%emt 0:00:19]} Ncd7 {[%emt 0:00:07]} (20... Qc8 $11) 21. Bb3 $15 {[%emt 0:04:43]} Nc5 {[%emt 0:00:08]} ({Black should try} 21... Qc8 $1 $15 22. Bg3 Bg6) 22. Bc2 {[%emt 0:00:12] A rather calm draw.   Weighted Error Value: White=0.08 (flawless) /Black=0.10 (very precise) .  Mistake:       	White=1     	Black=3      OK:         	White=9     	Black=8      Best:        	White=2     	---} 1/2-1/2

[Event "Chinese League Division-A 2024"]
[Site "Fuling Chongqing"]
[Date "2024.06.27"]
[Round "2.27"]
[White "Lou, Yiping"]
[Black "Peng, Xiongjian"]
[Result "1/2-1/2"]
[ECO "E38"]
[WhiteElo "2442"]
[BlackElo "2521"]
[Annotator "TA"]
[PlyCount "69"]
[EventDate "2024.06.28"]
[EventType "team-tourn"]
[EventCountry "CHN"]
[SourceTitle "playchess.com"]
[Source "ChessBase"]
[SourceQuality "1"]
[TimeControl "40/5400+30:1800+30"]

{[%evp 11,69,41,39,32,29,24,23,22,53,62,62,56,37,56,50,31,39,43,33,33,76,101,76,72,68,34,46,34,60,44,68,27,47,0,0,0,0,0,0,0,0,0,0,0,0,0,0,0,0,0,6,9,12,-1,0,0,62,20,20,8]} 1. d4 {[%emt 0:00:04]} Nf6 {[%emt 0:00:22]} 2. c4 {[%emt 0:00:08]} e6 {[%emt 0:00:03]} 3. Nc3 {[%emt 0:00:04]} Bb4 {[%emt 0:00:07]} 4. Qc2 {[%emt 0:00:29]} c5 {[%emt 0:00:07]} 5. dxc5 {[%emt 0:00:06]} Bxc5 {[%emt 0:00:59][%cal Bb4c5,Bc5d6,Bd6e5][%mdl 32]} 6. Nf3 {[%emt 0:00:24]} Nc6 {[%emt 0:00:10]} 7. e3 {[%emt 0:00:19]} d5 {[%emt 0:01:19]} 8. a3 {[%emt 0:02:40]} Bd6 {[%emt 0:04:04]} 9. b4 {[%emt 0:08:06][%cal Bb2b4,Bb4b5][%mdl 32] White has an edge.} a5 {[%emt 0:01:36]} 10. b5 $1 {[%emt 0:02:20]} Ne5 {[%emt 0:00:21]} 11. Nxe5 {[%emt 0:01:51]} Bxe5 {[%emt 0:00:07]} 12. Bb2 {[%emt 0:00:03]} dxc4 {[%emt 0:08:16]} 13. Na4 {[%emt 0:05:23]} c3 {[%emt 0:21:28]} 14. Bxc3 {[%emt 0:01:38]} Qc7 {[%emt 0:00:34]} 15. Rc1 {[%emt 0:05:20] [#] Hoping for Bxe5.} Bd7 {[%emt 0:03:32]} 16. Bxe5 {[%emt 0:11:52]} Qxe5 {[%emt 0:00:04]} 17. Nb6 {[%emt 0:00:06] Inhibits Rc8.} Rd8 {[%emt 0:00:04]} 18. Qc5 {[%emt 0:07:07]} Qxc5 {[%emt 0:06:49]} 19. Rxc5 {[%emt 0:00:07]} Nd5 {[%emt 0:12:57]} 20. Nxd5 {[%emt 0:03:41]} exd5 {[%emt 0:00:05]} 21. Rxd5 {[%emt 0:00:03]} Ke7 $1 {[%emt 0:00:26]} 22. Rd4 {[%emt 0:03:54]} (22. Be2 $14) 22... Be6 $11 {[%emt 0:03:27]} 23. Kd2 {[%emt 0:01:19]} Rxd4+ {[%emt 0:00:35]} 24. exd4 {[%emt 0:00:04][%mdl 4096] Endgame. KRB-KRB} Rd8 {[%emt 0:00:18]} 25. Ke3 {[%emt 0:00:25]} Rc8 {[%emt 0:00:06]} 26. Kd2 {[%emt 0:00:11] Prevents Rc1.} Rd8 {[%emt 0:00:18]} 27. Ke3 {[%emt 0:00:05]} Rc8 {[%emt 0:00:55]} 28. Kd2 {[%emt 0:00:04] Prevents Rc1.} Kd6 {[%emt 0:08:26]} 29. Be2 {[%emt 0:00:39]} Kd5 {[%emt 0:00:10]} 30. Bf3+ {[%emt 0:03:23]} Kxd4 {[%emt 0:00:13]} 31. Bxb7 {[%emt 0:00:08]} Rc3 {[%emt 0:00:08]} 32. Rb1 {[%emt 0:08:10]} Rd3+ {[%emt 0:08:59]} 33. Ke1 {[%emt 0:02:35] [#] Bf3 is the strong threat.} Kc5 {[%emt 0:02:49]} (33... Rxa3 $2 34. b6 $18) ({Better is} 33... Rb3 $1 $11 34. Rxb3 Bxb3) 34. b6 {[%emt 0:02:59] Strongly threatening Bf3.} Rb3 {[%emt 0:02:50]} (34... Rxa3 $2 {perishes.} 35. Be4 Bc8 (35... Ra4 $2 36. Bc2 $18) 36. b7 (36. Bxh7 Bb7 $11) 36... Bxb7 37. Rxb7 $18) 35. Rxb3 {[%emt 0:02:13] Weighted Error Value: White=0.07 (flawless) /Black=0.07 (flawless) .  Mistake:       	White=1     	Black=1      Inaccurate:     	White=3     	Black=3      OK:         	White=18    	Black=12     Best:        	---       	Black=1      Strong:       	White=1     	Black=1} 1/2-1/2